fUST/lending_fUST_20250630
["ID","MTS","AMOUNT","RATE_DAILY","PERIOD"]
[368598811,1751224248067,-460.0,0.00020263,2]
[368598812,1751224248076,-460.0,0.00020263,2]
[368598813,1751224248086,-618.13,0.00020263,2]
[368598814,1751224248096,-476.24,0.00020263,2]
[368598815,1751224248105,-460.0,0.00020263,2]
[368598816,1751224248115,-460.0,0.00020264,2]
[368598817,1751224248124,-460.0,0.00020264,2]
[368598818,1751224248133,-521.75,0.00020264,2]
[368598819,1751224248143,-654.38,0.00020264,2]
[368598820,1751224248152,-791.59,0.00020264,2]
[368598821,1751224248162,-314.71,0.00020264,2]
[368598822,1751224248171,-762.07,0.00020264,2]
[368598823,1751224248181,-460.0,0.00020264,2]
[368598824,1751224248190,-460.0,0.00020264,2]
[368598825,1751224248199,-710.97,0.00020264,2]
[368598826,1751224248209,-1750.91,0.00020264,2]
[368598827,1751224248218,-460.0,0.00020264,2]
[368598828,1751224248228,-497.75,0.00020264,2]
[368598829,1751224248238,-377.28972154,0.00020264,2]
[368598830,1751224248248,-460.0,0.00020264,2]
[368598831,1751224248258,-1683.27,0.00020264,2]
[368598832,1751224248269,-4152.41,0.00020264,2]
[368598833,1751224248278,-591.31,0.00020264,2]
[368598834,1751224248288,-460.0,0.00020264,2]
[368598835,1751224248298,-710.3,0.00020264,2]
[368598836,1751224248307,-814.36,0.00020264,2]
[368598837,1751224248317,-807.28,0.00020264,2]
[368598838,1751224248326,-4836.22,0.00020264,2]
[368598839,1751224248335,-1061.58,0.00020264,2]
[368598840,1751224248344,-151.0,0.00020264,2]
[368598841,1751224248353,-1185.62,0.00020264,2]
[368598842,1751224248362,-1401.85,0.00020265,2]
[368598843,1751224248371,-460.0,0.00020265,2]
[368598844,1751224248380,-153.164602,0.00020265,2]
[368598845,1751224248390,-462.37,0.00020266,2]
[368598846,1751224248399,-598.69,0.00020266,2]
[368598847,1751224248408,-255.90717814,0.00020266,2]
[368598848,1751224248417,-460.0,0.00020266,2]
[368598849,1751224248428,-1000.37,0.00020266,2]
[368598850,1751224248438,-873.9,0.00020266,2]
[368598851,1751224248448,-151.0,0.00020266,2]
[368598852,1751224248457,-768.49,0.00020266,2]
[368598853,1751224248466,-151.0,0.00020266,2]
[368598854,1751224248476,-628.32,0.00020267,2]
[368598855,1751224248485,-1474.03371567,0.00020305,2]
[368598856,1751224248495,-4157.50188723,0.00020333,2]
[368598857,1751224248504,-5000.0,0.00020344,2]
[368598858,1751224248515,-151.0,0.00020356,2]
[368598859,1751224248525,-151.0,0.00020356,2]
[368598860,1751224248539,-153.0,0.00020356,2]
[368598861,1751224248549,-355.0769662,0.00020356,2]
[368598862,1751224248559,-153.0,0.00020356,2]
[368598863,1751224248569,-153.0,0.00020356,2]
[368598864,1751224248579,-159.2394861,0.00020356,2]
[368598865,1751224248589,-153.0,0.00020356,2]
[368598866,1751224248599,-153.0,0.00020356,2]
[368598867,1751224248609,-153.0,0.00020356,2]
[368598868,1751224248619,-153.0,0.00020356,2]
[368598869,1751224248629,-153.0,0.00020356,2]
[368598870,1751224248639,-153.0,0.00020356,2]
[368598871,1751224248649,-4571.16910333,0.00020417,3]
[368598872,1751224248659,-11446.20932091,0.00020419,3]
[368598873,1751224248669,-226.544,0.00020419,2]
[368598874,1751224248680,-226.544,0.00020419,2]
[368598875,1751224248691,-151.0,0.00020419,2]
[368598876,1751224248701,-196.94953,0.00020419,2]
[368598877,1751224248711,-196.94953,0.00020419,2]
[368598878,1751224248722,-151.0,0.00020419,2]
[368598879,1751224248732,-151.0,0.00020419,2]
[368598880,1751224248742,-559.365679,0.00020419,2]
[368598881,1751224248752,-559.365679,0.00020419,2]
[368598882,1751224248762,-151.0,0.00020419,2]
[368598883,1751224248772,-213.82031328,0.0002042,3]
[368598884,1751224248782,-12567.05932091,0.0002042,3]
[368598885,1751224248792,-847.31290578,0.0002042,3]
[368598886,1751224248802,-160.0,0.0002042,3]
[368598887,1751224248812,-524.48349001,0.0002042,3]
[368598888,1751224248822,-249.87865234,0.00020437,2]
[368598889,1751224248831,-151.0,0.000205,4]
[368598890,1751224248841,-5030.0,0.000205,2]
[368598891,1751224248850,-314.0,0.00020509,2]
[368598892,1751224248862,-3038.72,0.00020536,2]
[368598893,1751224248872,-460.0,0.00020536,2]
[368598894,1751224248882,-3793.9,0.00020536,2]
[368598895,1751224248893,-481.9,0.00020536,2]
[368598896,1751224248904,-552.84,0.00020536,2]
[368598897,1751224248913,-1968.03,0.00020536,2]
[368598898,1751224248923,-460.0,0.00020536,2]
[368598899,1751224248934,-1424.12,0.00020536,2]
[368598900,1751224248944,-244.6,0.00020537,2]
[368598901,1751224248954,-857.04,0.00020537,2]
[368598902,1751224248964,-460.0,0.00020537,2]
[368598903,1751224248974,-460.0,0.00020537,2]
[368598904,1751224248984,-2854.37,0.00020537,2]
[368598905,1751224248997,-621.65,0.00020537,2]
[368598906,1751224249007,-631.08,0.00020537,2]
[368598907,1751224249017,-504.29,0.00020537,2]
[368598908,1751224249027,-613.49,0.00020537,2]
[368598909,1751224249036,-1052.36,0.00020537,2]
[368598910,1751224249046,-460.0,0.00020537,2]
[368598911,1751224249056,-494.61,0.00020537,2]
[368598912,1751224249066,-2774.43,0.00020537,2]
[368598913,1751224249076,-3648.95,0.00020537,2]
[368598914,1751224249086,-518.79,0.00020537,2]
[368598915,1751224249096,-2010.22,0.00020537,2]
[368598916,1751224249105,-1159.14,0.00020537,2]
[368598917,1751224249115,-460.0,0.00020537,2]
[368598918,1751224249124,-477.89,0.00020537,2]
[368598919,1751224249134,-460.0,0.00020537,2]
[368598920,1751224249144,-461.32,0.00020537,2]
[368598921,1751224249153,-460.0,0.00020537,2]
[368598922,1751224249163,-460.0,0.00020537,2]
[368598923,1751224249173,-460.0,0.00020537,2]
[368598924,1751224249182,-618.13,0.00020537,2]
[368598925,1751224249192,-476.24,0.00020537,2]
[368598926,1751224249202,-460.0,0.00020537,2]
[368598927,1751224249212,-460.0,0.00020538,2]
[368598928,1751224249222,-566.85,0.00020538,2]
[368598929,1751224249231,-521.75,0.00020538,2]
[368598930,1751224249243,-654.38,0.00020538,2]
[368598931,1751224249252,-791.59,0.00020538,2]
[368598932,1751224249261,-762.07,0.00020538,2]
[368598933,1751224249271,-151.0,0.00020538,2]
[368598934,1751224249281,-460.0,0.00020538,2]
[368598935,1751224249290,-710.97,0.00020538,2]
[368598936,1751224249300,-1750.91,0.00020538,2]
[368598937,1751224249310,-460.0,0.00020538,2]
[368598938,1751224249319,-497.75,0.00020538,2]
[368598939,1751224249330,-460.0,0.00020538,2]
[368598940,1751224249339,-1683.27,0.00020538,2]
[368598941,1751224249348,-4152.41,0.00020538,2]
[368598942,1751224249358,-591.31,0.00020538,2]
[368598943,1751224249368,-253.79801582,0.00020538,2]
[368598944,1751224249377,-710.3,0.00020538,2]
[368598945,1751224249387,-814.36,0.00020538,2]
[368598946,1751224249396,-807.28,0.00020538,2]
[368598947,1751224249406,-4836.22,0.00020538,2]
[368598948,1751224249415,-1061.58,0.00020538,2]
[368598949,1751224249424,-1185.62,0.00020538,2]
[368598950,1751224249434,-1401.85,0.00020539,2]
[368598951,1751224249445,-460.0,0.00020539,2]
[368598952,1751224249455,-462.37,0.0002054,2]
[368598953,1751224249464,-598.69,0.0002054,2]
[368598954,1751224249474,-460.0,0.0002054,2]
[368598955,1751224249484,-1000.37,0.0002054,2]
[368598956,1751224249494,-873.9,0.0002054,2]
[368598957,1751224249503,-768.49,0.0002054,2]
[368598958,1751224249513,-628.32,0.00020541,2]
[368598959,1751224249523,-151.0,0.00020542,2]
[368598960,1751224249532,-1224.8,0.00020543,2]
[368598961,1751224249542,-177.92820716,0.00020543,2]
[368598962,1751224249551,-500.0,0.00020547,14]
[368598963,1751224249561,-366.235562,0.00020548,2]
[368598964,1751224249570,-366.235562,0.00020548,2]
[368598965,1751224249579,-366.235562,0.00020548,2]
[368598966,1751224249590,-366.235562,0.00020548,2]
[368598967,1751224249599,-366.235562,0.00020548,2]
[368598968,1751224249608,-336.9475264,0.00020548,2]
[368598969,1751224249618,-314.0,0.00020568,2]
[368598970,1751224249668,-198.702258,0.00020579,4]
[368598971,1751224249677,-966.0,0.00020582,2]
[368598972,1751224249686,-2150.0,0.00020582,2]
[368598973,1751224249696,-646.0,0.00020582,2]
[368598974,1751224249705,-406.0,0.00020582,2]
[368598975,1751224249714,-422.825,0.00020582,2]
[368598976,1751224249723,-4571.16910333,0.0002059,3]
[368598977,1751224249733,-6007.34,0.000206,2]
[368598978,1751224249743,-2000.0,0.00020659,2]
[368598979,1751224249752,-481.68474319,0.00020676,2]
[368598980,1751224249762,-150.0,0.00020711,2]
[368598981,1751224249771,-800.0,0.00020738,2]
[368598982,1751224249781,-2674.25726465,0.00020744,2]
[368598983,1751224249791,-800.0,0.00020747,2]
[368598984,1751224249801,-2000.0,0.00020755,2]
[368598985,1751224249810,-1203.1307375,0.00020755,2]
[368598986,1751224249820,-1019.76312072,0.00020755,2]
[368598987,1751224249830,-150.0,0.00020759,2]
[368598988,1751224249840,-150.0,0.00020759,2]
[368598989,1751224249850,-150.0,0.00020759,2]
[368598990,1751224249862,-2165.35806877,0.00020762,3]
[368598991,1751224250144,-460.0,0.00018346,2]
[368598992,1751224250154,-460.0,0.00018348,2]
[368598993,1751224250163,-460.0,0.0001862,2]
[368598994,1751224250172,-460.0,0.00018622,2]
[368598995,1751224250181,-460.0,0.00018894,2]
[368598996,1751224250191,-158.77,0.00018896,2]
[368598997,1751224250201,-460.0,0.00019168,2]
[368598998,1751224250210,-2405.81103456,0.00020762,3]
[368598999,1751224250220,-500.0,0.00020769,2]
[368599000,1751224250229,-6.3278094,0.00020769,2]
[368599001,1751224250242,-493.6721906,0.00020769,2]
[368599002,1751224250252,-500.0,0.00020769,2]
[368599003,1751224250260,-500.0,0.00020769,2]
[368599004,1751224250270,-103.92700611,0.00020769,2]
[368599005,1751224250281,-396.07299389,0.00020769,2]
[368599006,1751224250291,-174.80453577,0.00020769,2]
[368599007,1751224250300,-500.0,0.00020769,2]
[368599008,1751224250308,-500.0,0.00020769,2]
[368599009,1751224250320,-500.0,0.00020769,2]
[368599010,1751224250329,-500.0,0.00020769,2]
[368599011,1751224250338,-264.884952,0.00020769,2]
[368599012,1751224250347,-500.0,0.00020769,2]
[368599013,1751224250356,-500.0,0.00020769,2]
[368599014,1751224250365,-631.58688021,0.00020777,2]
[368599015,1751224250377,-168.41311979,0.00020777,2]
[368599016,1751224250386,-153.0,0.00020795,2]
[368599017,1751224250396,-223.2553114,0.00020795,2]
[368599018,1751224250545,-874.12056685,0.00020795,2]
[368599019,1751224250620,-460.0,0.00018345,2]
[368599020,1751224250630,-460.0,0.00018346,2]
[368599021,1751224250639,-454.1,0.00019442,2]
[368599022,1751224250649,-1735.299829,0.000204,2]
[368599023,1751224250658,-52.66870415,0.00020795,2]
[368599024,1751224250668,-1150.6246012,0.00020795,2]
[368599025,1751224250677,-153.0,0.00020795,2]
[368599026,1751224250687,-916.8838584,0.00020795,2]
[368599027,1751224250697,-307.6815225,0.00020795,2]
[368599028,1751224250706,-312.2663013,0.00020795,2]
[368599029,1751224250716,-151.0,0.000208,4]
[368599030,1751224250725,-3038.72,0.0002081,2]
[368599031,1751224250735,-460.0,0.0002081,2]
[368599032,1751224250746,-3793.9,0.0002081,2]
[368599033,1751224250756,-481.9,0.0002081,2]
[368599034,1751224250765,-552.84,0.0002081,2]
[368599035,1751224250775,-1968.03,0.0002081,2]
[368599036,1751224250785,-151.0,0.0002081,2]
[368599037,1751224250795,-460.0,0.0002081,2]
[368599038,1751224250804,-1424.12,0.0002081,2]
[368599039,1751224250814,-857.04,0.00020811,2]
[368599040,1751224250823,-460.0,0.00020811,2]
[368599041,1751224250832,-460.0,0.00020811,2]
[368599042,1751224250842,-2854.37,0.00020811,2]
[368599043,1751224250852,-621.65,0.00020811,2]
[368599044,1751224250864,-631.08,0.00020811,2]
[368599045,1751224250874,-504.29,0.00020811,2]
[368599046,1751224250883,-613.49,0.00020811,2]
[368599047,1751224250892,-1052.36,0.00020811,2]
[368599048,1751224250902,-460.0,0.00020811,2]
[368599049,1751224250911,-494.61,0.00020811,2]
[368599050,1751224250921,-2364.00255072,0.00020811,2]
[368599051,1751224250934,-410.42744928,0.00020811,2]
[368599052,1751224250943,-593.51941714,0.00020811,2]
[368599053,1751224250954,-3055.43058286,0.00020811,2]
[368599054,1751224250963,-518.79,0.00020811,2]
[368599055,1751224250973,-177.914021,0.00020811,2]
[368599056,1751224250983,-2010.22,0.00020811,2]
[368599057,1751224250993,-1159.14,0.00020811,2]
[368599058,1751224251002,-460.0,0.00020811,2]
[368599059,1751224251011,-151.0,0.00020811,2]
[368599060,1751224251020,-477.89,0.00020811,2]
[368599061,1751224251030,-342.74663723,0.00020811,2]
[368599062,1751224251039,-461.32,0.00020811,2]
[368599063,1751224251048,-460.0,0.00020811,2]
[368599064,1751224251058,-460.0,0.00020811,2]
[368599065,1751224251067,-460.0,0.00020811,2]
[368599066,1751224251077,-618.13,0.00020811,2]
[368599067,1751224251087,-476.24,0.00020811,2]
[368599068,1751224251096,-460.0,0.00020811,2]
[368599069,1751224251106,-460.0,0.00020812,2]
[368599070,1751224251115,-521.75,0.00020812,2]
[368599071,1751224251125,-654.38,0.00020812,2]
[368599072,1751224251135,-791.59,0.00020812,2]
[368599073,1751224251144,-762.07,0.00020812,2]
[368599074,1751224251153,-460.0,0.00020812,2]
[368599075,1751224251163,-710.97,0.00020812,2]
[368599076,1751224251172,-1750.91,0.00020812,2]
[368599077,1751224251181,-460.0,0.00020812,2]
[368599078,1751224251191,-151.0,0.00020812,2]
[368599079,1751224251201,-151.0,0.00020812,2]
[368599080,1751224251211,-497.75,0.00020812,2]
[368599081,1751224251221,-460.0,0.00020812,2]
[368599082,1751224251230,-1683.27,0.00020812,2]
[368599083,1751224251240,-4152.41,0.00020812,2]
[368599084,1751224251250,-591.31,0.00020812,2]
[368599085,1751224251259,-710.3,0.00020812,2]
[368599086,1751224251269,-814.36,0.00020812,2]
[368599087,1751224251278,-807.28,0.00020812,2]
[368599088,1751224251289,-4836.22,0.00020812,2]
[368599089,1751224251299,-1061.58,0.00020812,2]
[368599090,1751224251308,-1185.62,0.00020812,2]
[368599091,1751224251318,-151.0,0.00020813,2]
[368599092,1751224251327,-151.0,0.00020813,2]
[368599093,1751224251336,-151.0,0.00020813,2]
[368599094,1751224251346,-1141.026192,0.00020813,2]
[368599095,1751224251355,-1141.026192,0.00020813,2]
[368599096,1751224251364,-222.12273,0.00020813,2]
[368599097,1751224251374,-222.12273,0.00020813,2]
[368599098,1751224251383,-807.455512,0.00020813,2]
[368599099,1751224251392,-807.455512,0.00020813,2]
[368599100,1751224251401,-151.0,0.00020813,2]
[368599101,1751224251411,-151.0,0.00020813,2]
[368599102,1751224251420,-151.0,0.00020813,2]
[368599103,1751224251429,-234.126902,0.00020813,2]
[368599104,1751224251439,-234.126902,0.00020813,2]
[368599105,1751224251448,-462.19,0.00020813,2]
[368599106,1751224251457,-462.37,0.00020814,2]
[368599107,1751224251467,-559.365679,0.00020814,2]
[368599108,1751224251476,-559.365679,0.00020814,2]
[368599109,1751224251486,-151.0,0.00020814,2]
[368599110,1751224251495,-598.69,0.00020814,2]
[368599111,1751224251504,-151.0,0.00020814,2]
[368599112,1751224251514,-460.0,0.00020814,2]
[368599113,1751224251523,-1000.37,0.00020814,2]
[368599114,1751224251533,-314.589189,0.00020814,2]
[368599115,1751224251542,-314.589189,0.00020814,2]
[368599116,1751224251552,-873.9,0.00020814,2]
[368599117,1751224251562,-768.49,0.00020814,2]
[368599118,1751224251572,-226.544,0.00020815,2]
[368599119,1751224251581,-226.544,0.00020815,2]
[368599120,1751224251591,-152.213498,0.00020815,2]
[368599121,1751224251601,-196.94953,0.00020815,2]
[368599122,1751224251611,-196.94953,0.00020815,2]
[368599123,1751224251621,-151.0,0.00020815,2]
[368599124,1751224251630,-151.0,0.00020815,2]
[368599125,1751224251640,-628.32,0.00020815,2]
[368599126,1751224251649,-314.0,0.00020826,2]
[368599127,1751224251659,-268.18450597,0.00020848,2]
[368599128,1751224251668,-151.0,0.0002088,2]
[368599129,1751224251678,-151.0,0.00020892,2]
[368599130,1751224251687,-5000.0,0.00020892,2]
[368599131,1751224251697,-193.96505387,0.000209,2]
[368599132,1751224251706,-213.82031328,0.000209,3]
[368599133,1751224251716,-188.591227,0.000209,2]
[368599134,1751224251726,-1474.03371567,0.000209,2]
[368599135,1751224251735,-7623.71196624,0.000209,2]
[368599136,1751224251745,-1000.0,0.000209,2]
[368599137,1751224251755,-800.0,0.00020904,2]
[368599138,1751224251764,-306.0,0.00020904,2]
[368599139,1751224251774,-800.0,0.00020915,2]
[368599140,1751224251783,-178.61913888,0.00020916,2]
[368599141,1751224251793,-713.76207895,0.00020916,2]
[368599142,1751224251802,-525.59567588,0.00020916,2]
[368599143,1751224251812,-2100.28032083,0.00020916,2]
[368599144,1751224251821,-4571.16910333,0.00020934,4]
[368599145,1751224251831,-151.0,0.00020935,2]
[368599146,1751224251840,-408.21772945,0.00020952,2]
[368599147,1751224251851,-800.0,0.00020952,2]
[368599148,1751224251860,-500.0,0.00020958,15]
[368599149,1751224251873,-151.0,0.00020986,2]
[368599150,1751224251882,-151.912277,0.00020986,2]
[368599151,1751224251892,-211.0,0.0002099,2]
[368599152,1751224251902,-932.72500576,0.00020999,2]
[368599153,1751224251912,-559.365679,0.00020999,2]
[368599154,1751224251922,-559.365679,0.00020999,2]
[368599155,1751224251931,-138444.27809143,0.00020999,2]
[368599156,1751224252050,-460.0,0.00018345,2]
[368599157,1751224252060,-460.0,0.00018619,2]
[368599158,1751224252070,-5305.39041383,0.00020999,2]
[368599159,1751224252081,-426.4,0.00020999,2]
[368599160,1751224252093,-643.85500005,0.00020999,2]
[368599161,1751224252105,-48745.92051087,0.00020999,2]
[368599162,1751224252119,-26169.14386494,0.00020999,2]
[368599174,1751225351887,297.012825,0.00013699,2]
[368599240,1751225433008,-201.8088247,0.00018242,2]
[368599242,1751225433019,-300.0,0.0001834,2]
[368599245,1751225433030,-186.0,0.0001834,2]
[368599247,1751225433041,-1200.0,0.0001834,2]
[368599249,1751225433052,-300.0,0.0001834,2]
[368599251,1751225433062,-300.0,0.0001834,2]
[368599253,1751225433073,-460.0,0.00018341,2]
[368599255,1751225433083,-2245.7,0.00018341,2]
[368599257,1751225433094,-460.0,0.00018341,2]
[368599259,1751225433105,-460.0,0.00018341,2]
[368599262,1751225433116,-277.18367845,0.00018341,2]
[368599339,1751225438653,-182.81632155,0.00018341,2]
[368599340,1751225438663,-245.1595705,0.00018341,2]
[368599341,1751225438675,-667.27857388,0.00018341,2]
[368599342,1751225438686,-1385.2,0.00018341,2]
[368599343,1751225438704,-84.19185562,0.00018341,2]
[368599344,1751225438714,-189.80028119,0.00018341,2]
[368599345,1751225438724,-2684.88,0.00018341,2]
[368599346,1751225438734,-460.0,0.00018341,2]
[368599347,1751225438745,-2736.72,0.00018341,2]
[368599348,1751225438754,-460.0,0.00018341,2]
[368599349,1751225438764,-460.0,0.00018341,2]
[368599351,1751225438773,-460.0,0.00018341,2]
[368599353,1751225438782,-2958.39,0.00018341,2]
[368599355,1751225438792,-460.0,0.00018341,2]
[368599356,1751225438801,-1591.42,0.00018341,2]
[368599357,1751225438811,-460.0,0.00018341,2]
[368599358,1751225438821,-1628.49,0.00018341,2]
[368599359,1751225438831,-460.0,0.00018341,2]
[368599360,1751225438840,-460.0,0.00018341,2]
[368599361,1751225438850,-460.0,0.00018341,2]
[368599362,1751225438859,-460.0,0.00018341,2]
[368599363,1751225438868,-477.24930591,0.00018341,2]
[368599364,1751225438877,-540.3610873,0.00018341,2]
[368599365,1751225438886,-460.0,0.00018341,2]
[368599366,1751225438896,-460.0,0.00018341,2]
[368599367,1751225438905,-752.51,0.00018341,2]
[368599368,1751225438914,-460.0,0.00018341,2]
[368599369,1751225438923,-460.22156694,0.00018341,2]
[368599370,1751225438933,-460.0,0.00018341,2]
[368599371,1751225438942,-1216.82,0.00018341,2]
[368599372,1751225438951,-2488.46124574,0.00018341,2]
[368599373,1751225438962,-460.0,0.00018342,2]
[368599374,1751225438972,-460.0,0.00018342,2]
[368599375,1751225438982,-460.0,0.00018342,2]
[368599376,1751225438991,-460.0,0.00018342,2]
[368599377,1751225439000,-460.0,0.00018342,2]
[368599378,1751225439010,-460.0,0.00018342,2]
[368599379,1751225439021,-460.0,0.00018342,2]
[368599380,1751225439030,-484.32,0.00018342,2]
[368599381,1751225439040,-460.0,0.00018342,2]
[368599382,1751225439050,-460.0,0.00018342,2]
[368599383,1751225439059,-460.0,0.00018342,2]
[368599384,1751225439068,-460.0,0.00018342,2]
[368599385,1751225439078,-508.72,0.00018342,2]
[368599386,1751225439087,-492.47,0.00018342,2]
[368599387,1751225439096,-823.83,0.00018342,2]
[368599388,1751225439105,-609.77,0.00018342,2]
[368599389,1751225439115,-460.0,0.00018342,2]
[368599390,1751225439124,-460.0,0.00018342,2]
[368599391,1751225439133,-460.0,0.00018342,2]
[368599392,1751225439142,-494.47,0.00018342,2]
[368599393,1751225439151,-460.0,0.00018342,2]
[368599394,1751225439160,-583.73,0.00018342,2]
[368599395,1751225439169,-460.0,0.00018342,2]
[368599396,1751225439179,-952.44,0.00018342,2]
[368599397,1751225439188,-692.5,0.00018342,2]
[368599398,1751225439197,-460.0,0.00018342,2]
[368599399,1751225439206,-460.0,0.00018342,2]
[368599400,1751225439216,-460.0,0.00018342,2]
[368599401,1751225439226,-460.0,0.00018342,2]
[368599402,1751225439235,-460.0,0.00018342,2]
[368599403,1751225439245,-460.0,0.00018342,2]
[368599404,1751225439254,-546.86,0.00018342,2]
[368599405,1751225439263,-460.0,0.00018343,2]
[368599406,1751225439272,-460.0,0.00018343,2]
[368599407,1751225439281,-460.0,0.00018343,2]
[368599408,1751225439291,-460.0,0.00018343,2]
[368599409,1751225439300,-460.0,0.00018343,2]
[368599410,1751225439309,-464.87007818,0.00018343,2]
[368599411,1751225439319,-460.0,0.00018343,2]
[368599412,1751225439328,-460.0,0.00018343,2]
[368599413,1751225439338,-460.0,0.00018343,2]
[368599414,1751225439347,-460.0,0.00018343,2]
[368599415,1751225439358,-450.0,0.00018343,2]
[368599416,1751225439367,-460.0,0.00018343,2]
[368599417,1751225439376,-460.0,0.00018343,2]
[368599418,1751225439386,-460.0,0.00018343,2]
[368599419,1751225439395,-460.0,0.00018343,2]
[368599420,1751225439404,-460.0,0.00018343,2]
[368599421,1751225439413,-460.0,0.00018343,2]
[368599422,1751225439423,-460.0,0.00018343,2]
[368599423,1751225439433,-460.0,0.00018343,2]
[368599424,1751225439442,-560.46,0.00018343,2]
[368599425,1751225439451,-460.0,0.00018343,2]
[368599426,1751225439461,-633.97,0.00018343,2]
[368599427,1751225439471,-460.0,0.00018343,2]
[368599428,1751225439480,-460.0,0.00018343,2]
[368599429,1751225439490,-609.88,0.00018343,2]
[368599430,1751225439499,-889.22,0.00018343,2]
[368599431,1751225439509,-460.0,0.00018343,2]
[368599432,1751225439519,-460.0,0.00018343,2]
[368599433,1751225439530,-460.0,0.00018343,2]
[368599434,1751225439539,-824.53,0.00018343,2]
[368599435,1751225439549,-460.0,0.00018343,2]
[368599436,1751225439559,-460.0,0.00018343,2]
[368599437,1751225439569,-3402.29,0.00018343,2]
[368599438,1751225439583,-719.49,0.00018343,2]
[368599439,1751225439592,-1472.59,0.00018343,2]
[368599440,1751225439602,-1232.36,0.00018343,2]
[368599441,1751225439611,-460.0,0.00018343,2]
[368599442,1751225439622,-318.44421918,0.00018343,2]
[368599443,1751225439632,-460.0,0.00018343,2]
[368599444,1751225439642,-460.0,0.00018343,2]
[368599445,1751225439651,-639.78,0.00018343,2]
[368599446,1751225439661,-929.91,0.00018343,2]
[368599447,1751225439671,-1435.41,0.00018343,2]
[368599448,1751225439681,-460.0,0.00018344,2]
[368599449,1751225439690,-200.03581694,0.00018344,2]
[368599450,1751225439699,-460.0,0.00018344,2]
[368599451,1751225439708,-460.0,0.00018344,2]
[368599452,1751225439718,-3777.8,0.00018344,2]
[368599453,1751225439727,-1109.8,0.00018344,2]
[368599454,1751225439737,-460.0,0.00018345,2]
[368599455,1751225439747,-460.0,0.00018345,2]
[368599456,1751225439756,-464.50517288,0.00018345,2]
[368599457,1751225439767,-516.4,0.00018345,2]
[368599458,1751225439777,-460.0,0.00018345,2]
[368599459,1751225439787,-460.0,0.00018345,2]
[368599460,1751225439796,-460.0,0.00018345,2]
[368599461,1751225439807,-460.0,0.00018345,2]
[368599462,1751225439817,-460.0,0.00018345,2]
[368599463,1751225439827,-669.23,0.00018345,2]
[368599464,1751225439837,-461.43011132,0.00018345,2]
[368599465,1751225439847,-369.27939883,0.00018345,2]
[368599466,1751225439857,-460.0,0.00018347,2]
[368599467,1751225439866,-151.0,0.00018504,2]
[368599468,1751225439876,-2245.7,0.00018615,2]
[368599469,1751225439887,-460.0,0.00018615,2]
[368599470,1751225439896,-460.0,0.00018615,2]
[368599471,1751225439906,-2381.83,0.00018615,2]
[368599472,1751225439915,-2684.88,0.00018615,2]
[368599473,1751225439925,-2736.72,0.00018615,2]
[368599474,1751225439934,-460.0,0.00018615,2]
[368599475,1751225439944,-460.0,0.00018615,2]
[368599476,1751225439953,-460.0,0.00018615,2]
[368599477,1751225439964,-2958.39,0.00018615,2]